[Event "Titled Tuesday Blitz July 4 Late 2023"]
[White "reevecanada"]
[Black "Nunez V, Gustavo Eduardo"]
[BlackFideId "4403690"]
[WhiteElo "2549"]
[BlackElo "2452"]
[Result "0-1"]
[Round "7"]
[TimeControl "180+2"]
[Date "2023.07.04"]
[WhiteClock "0:00:00"]
[BlackClock "0:00:11"]
[Board "74"]

1. e4 {[%clk 0:03:00]}  c5 {[%clk 0:03:00]} 2. Nf3 {[%clk 0:02:58]}  Nc6 {[%clk 0:02:59]} 3. Bb5 {[%clk 0:02:57]}  g6 {[%clk 0:02:59]} 4. O-O {[%clk 0:02:55]}  Bg7 {[%clk 0:02:59]} 5. c3 {[%clk 0:02:56]}  e5 {[%clk 0:02:59]} 6. d3 {[%clk 0:02:52]}  Nge7 {[%clk 0:02:58]} 7. Be3 {[%clk 0:02:51]}  d6 {[%clk 0:02:58]} 8. d4 {[%clk 0:02:50]}  cxd4 {[%clk 0:02:52]} 9. cxd4 {[%clk 0:02:50]}  O-O {[%clk 0:02:52]} 10. Nc3 {[%clk 0:02:49]}  Bg4 {[%clk 0:02:50]} 11. d5 {[%clk 0:02:48]}  Nd4 {[%clk 0:02:46]} 12. Be2 {[%clk 0:02:43]}  Nxe2+ {[%clk 0:02:43]} 13. Qxe2 {[%clk 0:02:44]}  f5 {[%clk 0:02:43]} 14. h3 {[%clk 0:02:41]}  Bh5 {[%clk 0:02:37]} 15. Bg5 {[%clk 0:02:13]}  fxe4 {[%clk 0:02:32]} 16. Qxe4 {[%clk 0:02:11]}  Bxf3 {[%clk 0:02:30]} 17. gxf3 {[%clk 0:02:12]}  Qd7 {[%clk 0:02:30]} 18. f4 {[%clk 0:02:11]}  Nf5 {[%clk 0:02:23]} 19. fxe5 {[%clk 0:02:09]}  Bxe5 {[%clk 0:02:24]} 20. Qg2 {[%clk 0:02:05]}  h6 {[%clk 0:02:19]} 21. Be3 {[%clk 0:01:59]}  Nh4 {[%clk 0:02:05]} 22. Qg4 {[%clk 0:01:56]}  Qxg4+ {[%clk 0:02:01]} 23. hxg4 {[%clk 0:01:55]}  Rf3 {[%clk 0:01:56]} 24. Ne4 {[%clk 0:01:41]}  g5 {[%clk 0:01:30]} 25. Nd2 {[%clk 0:01:28]}  Rh3 {[%clk 0:01:29]} 26. Rfd1 {[%clk 0:01:17]}  Rf8 {[%clk 0:01:11]} 27. Nc4 {[%clk 0:01:11]}  Bh2+ {[%clk 0:01:01]} 28. Kf1 {[%clk 0:01:09]}  b5 {[%clk 0:00:59]} 29. Ke2 {[%clk 0:00:58]}  bxc4 {[%clk 0:00:59]} 30. Rh1 {[%clk 0:00:58]}  Nf3 {[%clk 0:00:50]} 31. Rac1 {[%clk 0:00:48]}  Ne5 {[%clk 0:00:42]} 32. Bd4 {[%clk 0:00:35]}  Nxg4 {[%clk 0:00:39]} 33. Rxc4 {[%clk 0:00:35]}  Rh4 {[%clk 0:00:32]} 34. Rc7 {[%clk 0:00:28]}  Be5 {[%clk 0:00:23]} 35. Rxh4 {[%clk 0:00:24]}  gxh4 {[%clk 0:00:22]} 36. Bxa7 {[%clk 0:00:22]}  h3 {[%clk 0:00:20]} 37. Rc4 {[%clk 0:00:21]}  h5 {[%clk 0:00:18]} 38. Kf1 {[%clk 0:00:17]}  Rf7 {[%clk 0:00:15]} 39. Bb6 {[%clk 0:00:16]}  Rb7 {[%clk 0:00:15]} 40. Rc6 {[%clk 0:00:12]}  Rf7 {[%clk 0:00:10]} 41. a4 {[%clk 0:00:11]}  Bg3 {[%clk 0:00:10]} 42. Rc2 {[%clk 0:00:03]}  Nh2+ {[%clk 0:00:09]} 43. Kg1 {[%clk 0:00:02]}  Nf3+ {[%clk 0:00:10]} 44. Kf1 {[%clk 0:00:02]}  Be5 {[%clk 0:00:10]} 45. a5 {[%clk 0:00:00]}  Rg7 {[%clk 0:00:11]} 0-1


[Site "https://www.chess.com"]

[Event "Titled Tuesday Blitz July 4 Late 2023"]
[White "Balla, Tamas-Kristof"]
[Black "Estrada Nieto, Julian"]
[WhiteFideId "1208497"]
[BlackFideId "5101018"]
[WhiteElo "2449"]
[BlackElo "2547"]
[Result "1-0"]
[Round "7"]
[TimeControl "180+2"]
[Date "2023.07.04"]
[WhiteClock "0:00:08"]
[BlackClock "0:00:00"]
[Board "75"]

1. e4 {[%clk 0:03:00]}  e5 {[%clk 0:03:00]} 2. Nf3 {[%clk 0:02:59]}  Nc6 {[%clk 0:03:00]} 3. Bc4 {[%clk 0:02:59]}  Bc5 {[%clk 0:02:59]} 4. b4 {[%clk 0:02:59]}  Bb6 {[%clk 0:02:58]} 5. a4 {[%clk 0:02:58]}  a6 {[%clk 0:02:58]} 6. c3 {[%clk 0:02:58]}  Nf6 {[%clk 0:02:52]} 7. d3 {[%clk 0:02:58]}  d6 {[%clk 0:02:52]} 8. h3 {[%clk 0:02:56]}  h6 {[%clk 0:02:50]} 9. O-O {[%clk 0:02:51]}  g5 {[%clk 0:02:37]} 10. Nh2 {[%clk 0:02:24]}  Rg8 {[%clk 0:02:26]} 11. Be3 {[%clk 0:02:21]}  g4 {[%clk 0:02:20]} 12. hxg4 {[%clk 0:02:05]}  Nxg4 {[%clk 0:02:20]} 13. Qf3 {[%clk 0:01:27]}  Qe7 {[%clk 0:02:15]} 14. Bxb6 {[%clk 0:01:23]}  cxb6 {[%clk 0:02:12]} 15. Nd2 {[%clk 0:01:11]}  Nxh2 {[%clk 0:02:10]} 16. Kxh2 {[%clk 0:01:11]}  Bg4 {[%clk 0:02:04]} 17. Qg3 {[%clk 0:00:56]}  O-O-O {[%clk 0:01:56]} 18. b5 {[%clk 0:00:42]}  Nb8 {[%clk 0:01:04]} 19. bxa6 {[%clk 0:00:43]}  bxa6 {[%clk 0:01:03]} 20. Rab1 {[%clk 0:00:41]}  Kc7 {[%clk 0:01:02]} 21. Qe3 {[%clk 0:00:37]}  Nd7 {[%clk 0:00:50]} 22. Bxa6 {[%clk 0:00:37]}  Qh4+ {[%clk 0:00:45]} 23. Kg1 {[%clk 0:00:37]}  Bh3 {[%clk 0:00:43]} 24. g3 {[%clk 0:00:37]}  Bxf1 {[%clk 0:00:39]} 25. Nxf1 {[%clk 0:00:36]}  Rb8 {[%clk 0:00:29]} 26. Bb5 {[%clk 0:00:31]}  Qg5 {[%clk 0:00:28]} 27. Qf3 {[%clk 0:00:25]}  Nf6 {[%clk 0:00:20]} 28. Ne3 {[%clk 0:00:25]}  h5 {[%clk 0:00:19]} 29. Qxf6 {[%clk 0:00:23]}  Qxf6 {[%clk 0:00:19]} 30. Nd5+ {[%clk 0:00:23]}  Kd8 {[%clk 0:00:16]} 31. Nxf6 {[%clk 0:00:24]}  Rh8 {[%clk 0:00:14]} 32. d4 {[%clk 0:00:22]}  Ke7 {[%clk 0:00:14]} 33. Nd5+ {[%clk 0:00:22]}  Ke6 {[%clk 0:00:12]} 34. dxe5 {[%clk 0:00:20]}  Kxe5 {[%clk 0:00:12]} 35. Re1 {[%clk 0:00:16]}  h4 {[%clk 0:00:11]} 36. f4+ {[%clk 0:00:16]}  Ke6 {[%clk 0:00:11]} 37. Kf2 {[%clk 0:00:12]}  hxg3+ {[%clk 0:00:10]} 38. Kxg3 {[%clk 0:00:12]}  Rbg8+ {[%clk 0:00:11]} 39. Kf2 {[%clk 0:00:12]}  Rh2+ {[%clk 0:00:11]} 40. Ke3 {[%clk 0:00:12]}  Rg3+ {[%clk 0:00:08]} 41. Kd4 {[%clk 0:00:12]}  Rd2+ {[%clk 0:00:08]} 42. Kc4 {[%clk 0:00:12]}  Rc2 {[%clk 0:00:06]} 43. Rd1 {[%clk 0:00:08]}  Rf3 {[%clk 0:00:04]} 44. Kd4 {[%clk 0:00:07]}  Rff2 {[%clk 0:00:00]} 45. f5+ {[%clk 0:00:08]} 1-0


[Site "https://www.chess.com"]

[Event "Titled Tuesday Blitz July 4 Late 2023"]
[White "Kirillov, Dmitry"]
[Black "Bueno, Alfeu Junior Varela"]
[WhiteFideId "34180572"]
[BlackFideId "2108879"]
[WhiteElo "2536"]
[BlackElo "2438"]
[Result "0-1"]
[Round "7"]
[TimeControl "180+2"]
[Date "2023.07.04"]
[WhiteClock "0:00:00"]
[BlackClock "0:00:30"]
[Board "77"]

1. d4 {[%clk 0:03:00]}  e6 {[%clk 0:02:55]} 2. c4 {[%clk 0:03:01]}  f5 {[%clk 0:02:55]} 3. g3 {[%clk 0:03:01]}  Nf6 {[%clk 0:02:54]} 4. Bg2 {[%clk 0:03:02]}  Bb4+ {[%clk 0:02:53]} 5. Nc3 {[%clk 0:02:58]}  Bxc3+ {[%clk 0:02:52]} 6. bxc3 {[%clk 0:02:58]}  O-O {[%clk 0:02:53]} 7. Nf3 {[%clk 0:02:58]}  d6 {[%clk 0:02:54]} 8. O-O {[%clk 0:02:58]}  Nc6 {[%clk 0:02:54]} 9. d5 {[%clk 0:02:51]}  Na5 {[%clk 0:02:48]} 10. Nd4 {[%clk 0:02:38]}  e5 {[%clk 0:02:35]} 11. Ne6 {[%clk 0:02:36]}  Bxe6 {[%clk 0:02:31]} 12. dxe6 {[%clk 0:02:37]}  Rb8 {[%clk 0:02:28]} 13. Qa4 {[%clk 0:02:24]}  b6 {[%clk 0:02:24]} 14. Ba3 {[%clk 0:01:47]}  Qe8 {[%clk 0:02:09]} 15. Qd1 {[%clk 0:01:04]}  Nxc4 {[%clk 0:01:54]} 16. Bd5 {[%clk 0:00:49]}  Nxd5 {[%clk 0:01:51]} 17. Qxd5 {[%clk 0:00:48]}  Nxa3 {[%clk 0:01:51]} 18. Qb3 {[%clk 0:00:15]}  Nb5 {[%clk 0:01:23]} 19. a4 {[%clk 0:00:11]}  Nxc3 {[%clk 0:00:42]} 20. Qxc3 {[%clk 0:00:12]}  c5 {[%clk 0:00:41]} 21. Qc4 {[%clk 0:00:11]}  Rf6 {[%clk 0:00:41]} 22. Rfd1 {[%clk 0:00:11]}  Qxe6 {[%clk 0:00:41]} 23. Qa6 {[%clk 0:00:10]}  Rf7 {[%clk 0:00:40]} 24. a5 {[%clk 0:00:08]}  h6 {[%clk 0:00:39]} 25. axb6 {[%clk 0:00:07]}  Rxb6 {[%clk 0:00:40]} 26. Qd3 {[%clk 0:00:06]}  f4 {[%clk 0:00:35]} 27. f3 {[%clk 0:00:03]}  fxg3 {[%clk 0:00:32]} 28. hxg3 {[%clk 0:00:03]}  Re7 {[%clk 0:00:32]} 29. e4 {[%clk 0:00:03]}  Rf7 {[%clk 0:00:32]} 30. Kg2 {[%clk 0:00:03]}  Rd7 {[%clk 0:00:30]} 31. Rd2 {[%clk 0:00:00]}  Rb4 {[%clk 0:00:30]} 0-1


[Site "https://www.chess.com"]

[Event "Titled Tuesday Blitz July 4 Late 2023"]
[White "Gasparyan, David"]
[Black "Omariev, Maksim"]
[WhiteFideId "13311980"]
[BlackFideId "4193423"]
[WhiteElo "2535"]
[BlackElo "2429"]
[Result "0-1"]
[Round "7"]
[TimeControl "180+2"]
[Date "2023.07.04"]
[WhiteClock "0:00:47"]
[BlackClock "0:00:13"]
[Board "79"]

1. e4 {[%clk 0:03:00]}  c5 {[%clk 0:02:56]} 2. Nc3 {[%clk 0:02:55]}  d6 {[%clk 0:02:56]} 3. Bc4 {[%clk 0:02:51]}  Nc6 {[%clk 0:02:54]} 4. a3 {[%clk 0:02:50]}  g6 {[%clk 0:02:53]} 5. Nge2 {[%clk 0:02:50]}  Bg7 {[%clk 0:02:54]} 6. h4 {[%clk 0:02:50]}  Nf6 {[%clk 0:02:45]} 7. d3 {[%clk 0:02:49]}  a6 {[%clk 0:02:41]} 8. Bg5 {[%clk 0:02:46]}  b5 {[%clk 0:02:40]} 9. Ba2 {[%clk 0:02:42]}  Bb7 {[%clk 0:02:31]} 10. Ng3 {[%clk 0:02:40]}  h6 {[%clk 0:02:28]} 11. Bxf6 {[%clk 0:02:39]}  Bxf6 {[%clk 0:02:29]} 12. h5 {[%clk 0:02:39]}  g5 {[%clk 0:02:29]} 13. Nd5 {[%clk 0:02:37]}  Bxb2 {[%clk 0:02:27]} 14. Rb1 {[%clk 0:02:37]}  Bxa3 {[%clk 0:02:24]} 15. c3 {[%clk 0:02:30]}  e6 {[%clk 0:02:18]} 16. Ne3 {[%clk 0:02:30]}  Qa5 {[%clk 0:01:46]} 17. Qb3 {[%clk 0:02:23]}  Nd4 {[%clk 0:01:39]} 18. Qd1 {[%clk 0:02:10]}  Qxc3+ {[%clk 0:01:38]} 19. Kf1 {[%clk 0:02:10]}  O-O {[%clk 0:01:25]} 20. Ng4 {[%clk 0:02:06]}  Kg7 {[%clk 0:01:24]} 21. Rh3 {[%clk 0:02:05]}  f5 {[%clk 0:01:21]} 22. Nh2 {[%clk 0:01:55]}  Rf6 {[%clk 0:00:49]} 23. Ne2 {[%clk 0:01:46]}  Nxe2 {[%clk 0:00:48]} 24. Qxe2 {[%clk 0:01:46]}  Bb4 {[%clk 0:00:05]} 25. exf5 {[%clk 0:01:42]}  Qe5 {[%clk 0:00:05]} 26. Qxe5 {[%clk 0:01:40]}  dxe5 {[%clk 0:00:06]} 27. Bxe6 {[%clk 0:01:40]}  Bc8 {[%clk 0:00:07]} 28. Ng4 {[%clk 0:01:30]}  Rxf5 {[%clk 0:00:03]} 29. Bxf5 {[%clk 0:01:27]}  Bxf5 {[%clk 0:00:04]} 30. Rg3 {[%clk 0:01:25]}  Rd8 {[%clk 0:00:03]} 31. Ke2 {[%clk 0:01:24]}  Bc3 {[%clk 0:00:03]} 32. Rd1 {[%clk 0:01:22]}  Bd4 {[%clk 0:00:03]} 33. Ne3 {[%clk 0:01:20]}  Be6 {[%clk 0:00:03]} 34. Nc2 {[%clk 0:01:16]}  a5 {[%clk 0:00:02]} 35. Rb1 {[%clk 0:01:15]}  b4 {[%clk 0:00:02]} 36. Rf3 {[%clk 0:01:08]}  a4 {[%clk 0:00:02]} 37. Kd2 {[%clk 0:01:07]}  a3 {[%clk 0:00:02]} 38. Nxd4 {[%clk 0:01:03]}  exd4 {[%clk 0:00:02]} 39. Kc2 {[%clk 0:01:02]}  a2 {[%clk 0:00:02]} 40. Ra1 {[%clk 0:01:02]}  b3+ {[%clk 0:00:02]} 41. Kb2 {[%clk 0:01:03]}  Bd5 {[%clk 0:00:02]} 42. Rf5 {[%clk 0:01:03]}  Rd7 {[%clk 0:00:02]} 43. Re5 {[%clk 0:01:03]}  Bf7 {[%clk 0:00:02]} 44. Rxc5 {[%clk 0:01:03]}  Re7 {[%clk 0:00:02]} 45. Rb5 {[%clk 0:00:57]}  Re2+ {[%clk 0:00:03]} 46. Ka3 {[%clk 0:00:58]}  Rxf2 {[%clk 0:00:03]} 47. g4 {[%clk 0:00:58]}  Rd2 {[%clk 0:00:03]} 48. Rf1 {[%clk 0:00:53]}  Rxd3 {[%clk 0:00:03]} 49. Rb7 {[%clk 0:00:52]}  a1=Q+ {[%clk 0:00:01]} 50. Rxa1 {[%clk 0:00:51]}  Rf3 {[%clk 0:00:02]} 51. Re1 {[%clk 0:00:49]}  Rf4 {[%clk 0:00:01]} 52. Ree7 {[%clk 0:00:49]}  Kf8 {[%clk 0:00:02]} 53. Red7 {[%clk 0:00:47]}  Kg7 {[%clk 0:00:02]} 54. Kb2 {[%clk 0:00:47]}  Kf8 {[%clk 0:00:02]} 55. Rd8+ {[%clk 0:00:47]}  Kg7 {[%clk 0:00:02]} 56. Rdd7 {[%clk 0:00:46]}  Kf8 {[%clk 0:00:03]} 57. Rb6 {[%clk 0:00:47]}  Kg7 {[%clk 0:00:03]} 58. Rbd6 {[%clk 0:00:45]}  Rf2+ {[%clk 0:00:02]} 59. Kb1 {[%clk 0:00:41]}  Rf1+ {[%clk 0:00:02]} 60. Kb2 {[%clk 0:00:41]}  Rf2+ {[%clk 0:00:03]} 61. Ka3 {[%clk 0:00:41]}  Ra2+ {[%clk 0:00:03]} 62. Kb4 {[%clk 0:00:41]}  b2 {[%clk 0:00:04]} 63. Kc5 {[%clk 0:00:40]}  b1=Q {[%clk 0:00:04]} 64. Rxd4 {[%clk 0:00:41]}  Qc1+ {[%clk 0:00:04]} 65. Kd6 {[%clk 0:00:41]}  Ra5 {[%clk 0:00:04]} 66. Ke7 {[%clk 0:00:41]}  Qc5+ {[%clk 0:00:04]} 67. R7d6 {[%clk 0:00:40]}  Qe5+ {[%clk 0:00:05]} 68. Kd7 {[%clk 0:00:39]}  Ra7+ {[%clk 0:00:05]} 69. Kc6 {[%clk 0:00:39]}  Qe8+ {[%clk 0:00:05]} 70. Kc5 {[%clk 0:00:39]}  Qc8+ {[%clk 0:00:05]} 71. Rc6 {[%clk 0:00:39]}  Rc7 {[%clk 0:00:05]} 72. Rd6 {[%clk 0:00:39]}  Rxc6+ {[%clk 0:00:06]} 73. Rxc6 {[%clk 0:00:39]}  Qxg4 {[%clk 0:00:06]} 74. Rd6 {[%clk 0:00:38]}  Qxh5 {[%clk 0:00:07]} 75. Rd4 {[%clk 0:00:39]}  Qg6 {[%clk 0:00:07]} 76. Rd6 {[%clk 0:00:40]}  Qxd6+ {[%clk 0:00:07]} 77. Kxd6 {[%clk 0:00:40]}  Kg6 {[%clk 0:00:08]} 78. Ke5 {[%clk 0:00:41]}  g4 {[%clk 0:00:07]} 79. Kf4 {[%clk 0:00:42]}  h5 {[%clk 0:00:08]} 80. Kg3 {[%clk 0:00:42]}  Kg5 {[%clk 0:00:09]} 81. Kg2 {[%clk 0:00:43]}  h4 {[%clk 0:00:09]} 82. Kf2 {[%clk 0:00:44]}  Kf4 {[%clk 0:00:10]} 83. Kg2 {[%clk 0:00:45]}  g3 {[%clk 0:00:10]} 84. Kg1 {[%clk 0:00:45]}  Kf3 {[%clk 0:00:11]} 85. Kh1 {[%clk 0:00:46]}  h3 {[%clk 0:00:12]} 86. Kg1 {[%clk 0:00:46]}  Bd5 {[%clk 0:00:12]} 87. Kh1 {[%clk 0:00:47]}  Kf2# {[%clk 0:00:13]} 0-1


[Site "https://www.chess.com"]

[Event "Titled Tuesday Blitz July 4 Late 2023"]
[White "Arencibia Monduy, Antonio"]
[Black "Pein, Jonathan"]
[WhiteFideId "3507939"]
[BlackFideId "417092"]
[WhiteElo "2534"]
[BlackElo "2426"]
[Result "1-0"]
[Round "7"]
[TimeControl "180+2"]
[Date "2023.07.04"]
[WhiteClock "0:00:28"]
[BlackClock "0:00:00"]
[Board "80"]

1. e4 {[%clk 0:03:00]}  e6 {[%clk 0:02:56]} 2. d4 {[%clk 0:03:00]}  d5 {[%clk 0:02:57]} 3. Bd3 {[%clk 0:03:00]}  Nc6 {[%clk 0:02:54]} 4. c3 {[%clk 0:02:57]}  dxe4 {[%clk 0:02:52]} 5. Bxe4 {[%clk 0:02:57]}  Nf6 {[%clk 0:02:52]} 6. Bf3 {[%clk 0:02:56]}  e5 {[%clk 0:02:52]} 7. Qe2 {[%clk 0:02:45]}  e4 {[%clk 0:02:40]} 8. Bxe4 {[%clk 0:02:44]}  Nxe4 {[%clk 0:02:41]} 9. Qxe4+ {[%clk 0:02:44]}  Be7 {[%clk 0:02:40]} 10. Nf3 {[%clk 0:02:44]}  O-O {[%clk 0:02:40]} 11. O-O {[%clk 0:02:44]}  Be6 {[%clk 0:02:38]} 12. Bf4 {[%clk 0:02:38]}  Bf6 {[%clk 0:02:38]} 13. Nbd2 {[%clk 0:02:35]}  Ne7 {[%clk 0:02:37]} 14. Qxb7 {[%clk 0:02:20]}  Rb8 {[%clk 0:02:37]} 15. Qxa7 {[%clk 0:02:18]}  Rxb2 {[%clk 0:02:36]} 16. Qxc7 {[%clk 0:02:18]}  Qxc7 {[%clk 0:02:31]} 17. Bxc7 {[%clk 0:02:17]}  Nd5 {[%clk 0:02:17]} 18. Bd6 {[%clk 0:02:16]}  Rd8 {[%clk 0:02:17]} 19. Ne4 {[%clk 0:02:08]}  Nxc3 {[%clk 0:02:09]} 20. Nxf6+ {[%clk 0:02:08]}  gxf6 {[%clk 0:02:10]} 21. Be7 {[%clk 0:02:09]}  Ra8 {[%clk 0:02:04]} 22. Bxf6 {[%clk 0:02:08]}  Raxa2 {[%clk 0:02:03]} 23. Rxa2 {[%clk 0:01:57]}  Rxa2 {[%clk 0:02:04]} 24. h3 {[%clk 0:01:52]}  Ne2+ {[%clk 0:01:51]} 25. Kh2 {[%clk 0:01:51]}  Nf4 {[%clk 0:01:51]} 26. Rb1 {[%clk 0:01:44]}  h6 {[%clk 0:01:42]} 27. Rb8+ {[%clk 0:01:42]}  Kh7 {[%clk 0:01:42]} 28. h4 {[%clk 0:00:41]}  Bd5 {[%clk 0:01:21]} 29. Ne5 {[%clk 0:00:34]}  Ng6 {[%clk 0:01:10]} 30. h5 {[%clk 0:00:34]}  Ra8 {[%clk 0:00:24]} 31. hxg6+ {[%clk 0:00:34]}  fxg6 {[%clk 0:00:25]} 32. Rxa8 {[%clk 0:00:34]}  Bxa8 {[%clk 0:00:26]} 33. Kg3 {[%clk 0:00:33]}  g5 {[%clk 0:00:26]} 34. f3 {[%clk 0:00:32]}  Bd5 {[%clk 0:00:23]} 35. Kf2 {[%clk 0:00:31]}  Be6 {[%clk 0:00:21]} 36. g3 {[%clk 0:00:30]}  Bd5 {[%clk 0:00:22]} 37. Ke3 {[%clk 0:00:30]}  Kg8 {[%clk 0:00:17]} 38. Kd3 {[%clk 0:00:30]}  Kf8 {[%clk 0:00:17]} 39. Kc3 {[%clk 0:00:30]}  Ke8 {[%clk 0:00:17]} 40. Kb4 {[%clk 0:00:30]}  Kf8 {[%clk 0:00:11]} 41. Kc5 {[%clk 0:00:30]}  Be6 {[%clk 0:00:11]} 42. Kd6 {[%clk 0:00:30]}  Bd5 {[%clk 0:00:12]} 43. Kxd5 {[%clk 0:00:28]}  h5 {[%clk 0:00:13]} 44. Bxg5 {[%clk 0:00:28]}  h4 {[%clk 0:00:13]} 45. Bxh4 {[%clk 0:00:28]}  Kg7 {[%clk 0:00:00]} 46. Ke6 {[%clk 0:00:28]} 1-0


[Site "https://www.chess.com"]

[Event "Titled Tuesday Blitz July 4 Late 2023"]
[White "Ambartsumova, Karina"]
[Black "Kielinkei"]
[WhiteFideId "4166299"]
[WhiteElo "2534"]
[BlackElo "2425"]
[Result "1-0"]
[Round "7"]
[TimeControl "180+2"]
[Date "2023.07.04"]
[WhiteClock "0:00:16"]
[BlackClock "0:00:00"]
[Board "81"]

1. Nf3 {[%clk 0:03:00]}  d5 {[%clk 0:02:59]} 2. e3 {[%clk 0:03:00]}  c5 {[%clk 0:02:59]} 3. c4 {[%clk 0:03:01]}  e6 {[%clk 0:02:56]} 4. cxd5 {[%clk 0:02:59]}  exd5 {[%clk 0:02:56]} 5. d4 {[%clk 0:03:00]}  Nf6 {[%clk 0:02:56]} 6. Nc3 {[%clk 0:03:00]}  Nc6 {[%clk 0:02:56]} 7. Be2 {[%clk 0:03:01]}  Be7 {[%clk 0:02:55]} 8. O-O {[%clk 0:03:00]}  O-O {[%clk 0:02:54]} 9. b3 {[%clk 0:02:59]}  b6 {[%clk 0:02:45]} 10. Bb2 {[%clk 0:02:58]}  Bb7 {[%clk 0:02:45]} 11. Rc1 {[%clk 0:02:42]}  Rc8 {[%clk 0:02:41]} 12. dxc5 {[%clk 0:02:29]}  bxc5 {[%clk 0:02:31]} 13. Na4 {[%clk 0:02:28]}  Ne4 {[%clk 0:02:27]} 14. Bd3 {[%clk 0:02:17]}  f5 {[%clk 0:02:15]} 15. Bb1 {[%clk 0:02:08]}  Ba6 {[%clk 0:01:52]} 16. Re1 {[%clk 0:02:08]}  Qd7 {[%clk 0:01:22]} 17. Ne5 {[%clk 0:01:47]}  Nxe5 {[%clk 0:01:20]} 18. Bxe5 {[%clk 0:01:48]}  Qe6 {[%clk 0:01:09]} 19. Bb2 {[%clk 0:01:40]}  Bb5 {[%clk 0:01:02]} 20. f3 {[%clk 0:01:34]}  Nf6 {[%clk 0:00:50]} 21. Nc3 {[%clk 0:01:34]}  Bc6 {[%clk 0:00:48]} 22. Qd3 {[%clk 0:01:27]}  Nd7 {[%clk 0:00:40]} 23. Rcd1 {[%clk 0:01:27]}  Ne5 {[%clk 0:00:37]} 24. Qd2 {[%clk 0:01:25]}  Rcd8 {[%clk 0:00:37]} 25. Ne2 {[%clk 0:01:20]}  g5 {[%clk 0:00:33]} 26. f4 {[%clk 0:01:09]}  Ng4 {[%clk 0:00:30]} 27. Ng3 {[%clk 0:01:09]}  Qh6 {[%clk 0:00:19]} 28. h3 {[%clk 0:01:05]}  Qh4 {[%clk 0:00:05]} 29. Nxf5 {[%clk 0:01:01]}  Rxf5 {[%clk 0:00:05]} 30. Bxf5 {[%clk 0:01:02]}  Nf6 {[%clk 0:00:05]} 31. Be6+ {[%clk 0:00:55]}  Kf8 {[%clk 0:00:04]} 32. fxg5 {[%clk 0:00:51]}  Ne4 {[%clk 0:00:05]} 33. Rf1+ {[%clk 0:00:50]}  Ke8 {[%clk 0:00:05]} 34. Qd3 {[%clk 0:00:41]}  Bd6 {[%clk 0:00:05]} 35. Bf7+ {[%clk 0:00:24]}  Kd7 {[%clk 0:00:05]} 36. Bxd5 {[%clk 0:00:21]}  Qg3 {[%clk 0:00:02]} 37. Bxc6+ {[%clk 0:00:20]}  Kc7 {[%clk 0:00:02]} 38. Qxe4 {[%clk 0:00:20]}  Qh2+ {[%clk 0:00:02]} 39. Kf2 {[%clk 0:00:20]}  Rf8+ {[%clk 0:00:02]} 40. Ke2 {[%clk 0:00:21]}  Rd8 {[%clk 0:00:02]} 41. Rf7+ {[%clk 0:00:20]}  Kb6 {[%clk 0:00:02]} 42. Ba4 {[%clk 0:00:17]}  Bc7 {[%clk 0:00:00]} 43. Rxd8 {[%clk 0:00:16]} 1-0


[Site "https://www.chess.com"]

[Event "Titled Tuesday Blitz July 4 Late 2023"]
[White "Rottenwohrer Suarez, Juan"]
[Black "Carrasco Miranda, Andres"]
[WhiteFideId "32068182"]
[BlackFideId "3405990"]
[WhiteElo "2531"]
[BlackElo "2409"]
[Result "1-0"]
[Round "7"]
[TimeControl "180+2"]
[Date "2023.07.04"]
[WhiteClock "0:01:25"]
[BlackClock "0:00:02"]
[Board "82"]

1. Nf3 {[%clk 0:02:58]}  Nf6 {[%clk 0:02:58]} 2. g3 {[%clk 0:02:57]}  g6 {[%clk 0:02:58]} 3. Bg2 {[%clk 0:02:57]}  Bg7 {[%clk 0:02:58]} 4. O-O {[%clk 0:02:58]}  O-O {[%clk 0:02:59]} 5. c4 {[%clk 0:02:58]}  d5 {[%clk 0:02:56]} 6. cxd5 {[%clk 0:02:57]}  Nxd5 {[%clk 0:02:57]} 7. d4 {[%clk 0:02:57]}  Nc6 {[%clk 0:02:57]} 8. Nc3 {[%clk 0:02:58]}  Nb6 {[%clk 0:02:57]} 9. d5 {[%clk 0:02:58]}  Na5 {[%clk 0:02:55]} 10. Qc2 {[%clk 0:02:59]}  c6 {[%clk 0:02:51]} 11. dxc6 {[%clk 0:02:59]}  Nxc6 {[%clk 0:02:51]} 12. Rd1 {[%clk 0:03:00]}  Qc7 {[%clk 0:02:43]} 13. Bf4 {[%clk 0:03:01]}  e5 {[%clk 0:02:43]} 14. Nb5 {[%clk 0:02:55]}  Qb8 {[%clk 0:02:43]} 15. Be3 {[%clk 0:02:51]}  Bf5 {[%clk 0:02:41]} 16. Qb3 {[%clk 0:02:46]}  Be6 {[%clk 0:02:33]} 17. Qc2 {[%clk 0:02:36]}  Nc4 {[%clk 0:02:20]} 18. Bc5 {[%clk 0:02:31]}  Rd8 {[%clk 0:02:10]} 19. Ng5 {[%clk 0:02:31]}  Rxd1+ {[%clk 0:01:59]} 20. Rxd1 {[%clk 0:02:29]}  a6 {[%clk 0:01:42]} 21. Na7 {[%clk 0:01:57]}  Nxa7 {[%clk 0:00:30]} 22. Nxe6 {[%clk 0:01:56]}  Na5 {[%clk 0:00:20]} 23. Rd8+ {[%clk 0:01:38]}  Qxd8 {[%clk 0:00:17]} 24. Nxd8 {[%clk 0:01:39]}  Rxd8 {[%clk 0:00:05]} 25. Bxa7 {[%clk 0:01:38]}  e4 {[%clk 0:00:02]} 26. Bb6 {[%clk 0:01:25]} 1-0


[Site "https://www.chess.com"]

[Event "Titled Tuesday Blitz July 4 Late 2023"]
[White "Gombocz, Ferenc Jr."]
[Black "WindWhistler11"]
[WhiteFideId "775029"]
[WhiteElo "2402"]
[BlackElo "2529"]
[Result "1-0"]
[Round "7"]
[TimeControl "180+2"]
[Date "2023.07.04"]
[WhiteClock "0:01:08"]
[BlackClock "0:00:00"]
[Board "83"]

1. d4 {[%clk 0:03:00]}  f5 {[%clk 0:02:58]} 2. Bg5 {[%clk 0:02:59]}  d6 {[%clk 0:02:54]} 3. Nc3 {[%clk 0:02:54]}  h6 {[%clk 0:02:49]} 4. Bd2 {[%clk 0:02:52]}  g6 {[%clk 0:02:48]} 5. e4 {[%clk 0:02:52]}  Bg7 {[%clk 0:02:45]} 6. Nf3 {[%clk 0:02:51]}  Nc6 {[%clk 0:02:38]} 7. Bb5 {[%clk 0:02:50]}  Bd7 {[%clk 0:02:35]} 8. Bxc6 {[%clk 0:02:47]}  bxc6 {[%clk 0:02:33]} 9. e5 {[%clk 0:02:46]}  e6 {[%clk 0:02:13]} 10. O-O {[%clk 0:02:42]}  Ne7 {[%clk 0:02:09]} 11. Bf4 {[%clk 0:02:35]}  g5 {[%clk 0:02:04]} 12. exd6 {[%clk 0:02:29]}  gxf4 {[%clk 0:01:49]} 13. dxe7 {[%clk 0:02:29]}  Qxe7 {[%clk 0:01:50]} 14. Qd2 {[%clk 0:02:29]}  Qd6 {[%clk 0:01:44]} 15. Ne2 {[%clk 0:02:27]}  c5 {[%clk 0:01:39]} 16. Nxf4 {[%clk 0:01:57]}  cxd4 {[%clk 0:01:32]} 17. Nh5 {[%clk 0:01:57]}  O-O {[%clk 0:00:42]} 18. Nxg7 {[%clk 0:01:45]}  Kxg7 {[%clk 0:00:43]} 19. Qxd4+ {[%clk 0:01:44]}  Qxd4 {[%clk 0:00:42]} 20. Nxd4 {[%clk 0:01:45]}  e5 {[%clk 0:00:26]} 21. Nb3 {[%clk 0:01:45]}  Bb5 {[%clk 0:00:21]} 22. Rfe1 {[%clk 0:01:43]}  e4 {[%clk 0:00:18]} 23. Nd4 {[%clk 0:01:42]}  Bd7 {[%clk 0:00:17]} 24. Rad1 {[%clk 0:01:41]}  Rad8 {[%clk 0:00:17]} 25. Nb3 {[%clk 0:01:40]}  Be6 {[%clk 0:00:17]} 26. Nc5 {[%clk 0:01:39]}  Bc8 {[%clk 0:00:14]} 27. b4 {[%clk 0:01:32]}  Kf6 {[%clk 0:00:13]} 28. a4 {[%clk 0:01:27]}  Rd6 {[%clk 0:00:14]} 29. Kf1 {[%clk 0:01:24]}  Rfd8 {[%clk 0:00:14]} 30. Ke2 {[%clk 0:01:22]}  Be6 {[%clk 0:00:09]} 31. Rxd6 {[%clk 0:01:12]}  cxd6 {[%clk 0:00:08]} 32. Nxe6 {[%clk 0:01:11]}  Kxe6 {[%clk 0:00:09]} 33. Ke3 {[%clk 0:01:12]}  Rc8 {[%clk 0:00:00]} 34. Rc1 {[%clk 0:01:08]} 1-0


[Site "https://www.chess.com"]